bitfinex/quotes_ETHUSD_20250131
["timestamp","ask_amount","ask_price","bid_price","bid_amount"]
[1738288687105,3.05599,3272.3,3271.5,39.06925]
[1738288687351,3.05599,3272.3,3271.6,3.05659]
[1738288687644,0.03871783,3272.2,3271.7,3.05649]
[1738288687945,0.8267,3272.4,3271.8,3.05639]
[1738288688248,0.03872746,3272.3,3271.9,0.7966]
[1738288688799,0.03872746,3272.3,3271.9,3.85286]
[1738288689349,6.84008,3272.6,3272.0,3.05621]
[1738288689530,0.03874674,3272.5,3272.1,3.05611]
[1738288689900,0.03874674,3272.5,3271.9,0.7966]
[1738288689901,3.05557,3272.8,3271.9,3.85289]
[1738288690100,3.03870962,3272.7,3272.1,3.05607]
[1738288690305,0.03870962,3272.7,3272.1,3.05607]
[1738288690536,3.05558,3272.7,3272.1,3.05607]
[1738288690735,0.03869998,3272.6,3272.2,0.28427654]
[1738288691813,3.09437998,3272.6,3271.9,3.85289]
[1738288692018,3.09437998,3272.6,3272.0,3.05622]
[1738288692241,0.03869998,3272.6,3272.0,3.05622]
[1738288693408,0.03869998,3272.6,3272.1,3.34031921]
[1738288693613,0.03869998,3272.6,3272.2,3.05604]
[1738288693913,0.03873678,3272.5,3272.2,3.05604]
[1738288694119,6.05548,3272.8,3272.2,3.05604]
[1738288694319,0.03875605,3272.7,3272.2,3.05604]
[1738288694949,0.03875605,3272.7,3272.3,0.28425921]
[1738288695171,3.0557,3272.6,3272.3,0.28425921]
[1738288695568,0.03875337,3272.5,3272.3,0.28425921]
[1738288696070,3.87156,3272.4,3272.3,0.28425921]
[1738288696362,3.87156,3272.4,3271.2,8.93]
[1738288696363,3.05639,3271.9,3271.4,0.199]
[1738288696528,3.13343619,3271.8,3271.3,35.0]
[1738288696730,3.05652,3271.7,3271.3,35.0]
[1738288696912,3.87241,3271.5,3271.3,35.0]
[1738288697114,3.87241,3271.5,3271.0,0.9872]
[1738288697328,0.03867348,3271.4,3271.0,0.9872]
[1738288697528,0.03867348,3271.4,3271.1,35.0]
[1738288697723,0.03867348,3271.4,3271.1,35.74003163]
[1738288698355,0.8157,3271.5,3271.1,35.74003163]
[1738288698559,0.7995,3271.7,3271.1,38.79707163]
[1738288698718,0.03869276,3271.6,3271.1,38.79707163]
[1738288698915,0.7995,3271.7,3271.1,38.79707163]
[1738288699116,0.03869276,3271.6,3271.1,35.74003163]
[1738288699359,3.05671,3271.5,3271.1,35.74003163]
[1738288699675,0.03864204,3271.4,3271.2,0.74003163]
[1738288699842,3.09544204,3271.4,3271.2,0.74003163]
[1738288700163,3.85638,3271.3,3271.2,0.74003163]
[1738288700462,3.89501239,3271.3,3271.2,0.74003163]
[1738288700813,3.89501239,3271.3,3270.9,35.0]
[1738288701012,3.05698,3271.2,3270.9,35.0]
[1738288701327,0.03841404,3271.1,3270.7,0.45540408]
[1738288701916,3.05698,3271.2,3270.7,0.45540408]
[1738288702126,0.03839598,3271.1,3270.7,0.45540408]
[1738288702364,3.05698,3271.2,3270.7,0.45540408]
[1738288702559,0.03830306,3271.1,3270.7,0.45540408]
[1738288702718,3.05698,3271.2,3270.8,0.28444608]
[1738288702911,0.07651781,3271.1,3270.8,0.28444608]
[1738288703141,0.03830306,3271.1,3270.8,0.28444608]
[1738288703565,3.79034421,3271.2,3270.8,0.28444608]
[1738288703763,0.03825337,3271.1,3270.8,0.28444608]
[1738288704067,0.69514942,3271.2,3270.7,0.28444608]
[1738288704232,3.05735,3270.8,3270.7,0.28444608]
[1738288704436,3.0954448,3271.0,3270.7,0.28444608]
[1738288704778,3.05735,3270.9,3270.7,0.28444608]
[1738288704963,3.09554093,3270.9,3270.6,2.42]
[1738288707422,0.03819093,3270.9,3270.6,2.42]
[1738288707722,3.81017,3271.1,3270.7,35.0]
[1738288707956,0.03818129,3270.8,3270.7,35.0]
[1738288708154,3.81017,3271.1,3270.7,35.0]
[1738288708371,0.03818129,3270.8,3270.7,35.0]
[1738288708525,3.05735,3270.8,3270.7,35.0]
[1738288708736,3.09532772,3270.8,3270.7,35.0]
[1738288709476,0.03797772,3270.8,3270.7,35.0]
[1738288709771,6.05721,3271.0,3270.7,35.0]
[1738288709975,0.03751982,3270.8,3270.7,35.0]
[1738288710172,6.05721,3271.0,3270.7,35.0]
[1738288710330,0.03751982,3270.8,3270.7,35.0]
[1738288710525,6.05721,3271.0,3270.7,35.0]
[1738288710766,0.03751982,3270.8,3270.7,35.0]
[1738288711070,6.05721,3271.0,3270.7,35.0]
[1738288711071,3.0,3271.0,3270.7,35.0]
[1738288711230,0.03751982,3270.8,3270.7,35.0]
[1738288711432,6.05717,3271.0,3270.7,35.0]
[1738288711964,0.03752947,3270.9,3270.4,3.05771]
[1738288712561,0.03752947,3270.9,3270.5,35.0]
[1738288715052,3.09479947,3270.9,3270.5,35.0]
[1738288716577,0.03752947,3270.9,3270.2,0.7696]
[1738288716762,0.03752947,3270.9,3270.4,3.05771]
[1738288717159,0.03752947,3270.9,3270.5,35.0]
[1738288717577,0.03752947,3270.9,3270.6,3.05752]
[1738288717873,0.7531,3271.1,3270.7,3.05744]
[1738288718379,0.03746277,3271.0,3270.7,3.05744]
[1738288723697,0.03746277,3271.0,3270.7,3.83764]
[1738288723998,6.0569,3271.3,3270.7,3.83764]
[1738288724202,0.0359493,3270.9,3270.7,3.83764]
[1738288724500,6.0569,3271.3,3270.7,3.83764]
[1738288725002,0.03597823,3271.2,3270.7,3.83764]
[1738288725169,0.03597823,3271.2,3270.8,0.28467375]
[1738288725380,6.0569,3271.3,3270.8,0.28467375]
[1738288725585,0.03597823,3271.2,3270.8,0.28467375]
[1738288725877,6.0569,3271.3,3270.8,0.28467375]
[1738288726201,0.03597823,3271.2,3270.8,0.28467375]
[1738288726492,3.09295823,3271.2,3270.8,0.28467375]
[1738288726700,3.05698,3271.2,3270.8,0.28467375]
[1738288726901,0.03596527,3271.1,3270.8,0.28467375]
[1738288727097,0.03596527,3271.1,3270.9,0.28467375]
[1738288727471,3.05716,3271.0,3270.9,0.28467375]
[1738288727681,3.84766,3271.0,3270.9,0.28467375]
[1738288727892,3.88364575,3271.0,3270.9,0.28467375]
[1738288728665,0.82648575,3271.0,3270.9,0.28467375]
[1738288729310,0.03598575,3271.0,3270.9,0.28467375]
[1738288729909,3.05698,3271.2,3270.9,0.28467375]
[1738288730106,0.03598575,3271.0,3270.9,0.28467375]
[1738288730291,3.05698,3271.2,3270.9,0.28467375]
[1738288730476,0.03594561,3271.1,3270.9,0.28467375]
[1738288731381,0.03594561,3271.1,3271.0,0.28467375]
[1738288731869,3.09301561,3271.1,3271.0,0.28467375]
[1738288737222,4.09065917,3271.1,3271.0,0.28467375]
[1738288738525,7.09065917,3271.1,3271.0,0.28467375]
[1738288738829,7.89495917,3271.1,3271.0,0.28467375]
[1738288740295,6.89731561,3271.1,3271.0,0.28467375]
[1738288740490,6.09301561,3271.1,3271.0,0.28467375]
[1738288742648,0.03594561,3271.1,3271.0,0.28467375]
[1738288742791,0.03594561,3271.1,3271.0,4.72143375]
[1738288742999,3.86854,3272.3,3271.6,3.05654]
[1738288743231,0.03086539,3272.2,3271.7,3.82208]
[1738288744031,0.03086539,3272.2,3271.8,0.28467375]
[1738288744419,3.05604,3272.3,3271.8,0.28467375]
[1738288744741,0.03085575,3272.1,3271.8,0.28467375]
[1738288744901,0.03086539,3272.2,3271.8,0.28467375]
[1738288745253,3.05604,3272.3,3271.8,0.28467375]
[1738288745402,0.03105513,3272.1,3271.8,0.28467375]
[1738288745598,3.05604,3272.3,3271.8,0.28467375]
[1738288745830,0.03106477,3272.2,3271.9,0.28467375]
[1738288746438,0.03108503,3272.1,3271.9,0.28467375]
[1738288746939,0.03108503,3272.1,3271.7,3.82208]
[1738288746940,3.05602,3272.3,3271.7,0.7656]
[1738288747142,0.03107539,3272.0,3271.7,0.7656]
[1738288747342,3.05602,3272.3,3271.7,0.7656]
[1738288747500,0.03106907,3271.9,3271.7,3.8221]
[1738288747700,3.05602,3272.3,3271.7,3.8221]
[1738288747902,0.03105943,3271.8,3271.7,3.8221]
[1738288748145,3.05602,3272.3,3271.7,3.8221]
[1738288748349,0.03105279,3271.8,3271.7,3.8221]
[1738288748843,3.05602,3272.3,3271.7,3.8221]
[1738288749050,0.03105279,3271.8,3271.7,3.8221]
[1738288749255,3.05602,3272.3,3271.7,3.8221]
[1738288749543,0.03105279,3271.8,3271.7,3.8221]
[1738288749748,3.05602,3272.3,3271.7,3.8221]
[1738288749947,0.03105279,3271.8,3271.7,3.8221]
[1738288750151,3.05602,3272.3,3271.7,3.8221]
[1738288750746,0.03109135,3272.2,3271.7,3.8221]
[1738288750944,0.03109135,3272.2,3271.7,0.7656]
[1738288751150,3.08715135,3272.2,3271.7,0.7656]
[1738288752001,3.05615,3272.1,3271.7,0.7656]
[1738288752207,0.03108868,3272.0,3271.6,0.199]
[1738288752512,0.03108868,3272.0,3271.5,4.05419]
[1738288756469,0.06929241,3272.0,3271.5,4.05419]
[1738288756958,0.03108868,3272.0,3271.5,4.05419]
[1738288761195,0.03108868,3272.0,3271.5,3.85519]
[1738288761369,0.03108868,3272.0,3271.5,4.05419]
[1738288764190,3.05644,3271.8,3271.3,0.798]
[1738288764491,0.03132226,3271.7,3271.5,0.199]
[1738288764698,0.03132226,3271.7,3271.2,3.05698]
[1738288764867,3.05653,3271.7,3271.2,0.199]
[1738288765187,0.8018,3271.6,3271.2,0.199]
[1738288765497,0.83315248,3271.6,3271.2,0.199]
[1738288765791,0.83315248,3271.6,3271.2,3.25597]
[1738288768998,0.83315248,3271.6,3271.2,3.05697]
[1738288770363,0.83315248,3271.6,3271.0,3.0571]
[1738288770567,3.88977248,3271.6,3271.0,3.0571]
[1738288770751,4.27874173,3271.6,3271.1,0.199]
[1738288771376,3.05679,3271.4,3270.8,3.86703]
[1738288771606,0.7987,3271.2,3270.8,3.05733]
[1738288771813,0.0313491,3271.1,3270.8,3.05733]
[1738288773472,3.0,3271.4,3270.8,3.05733]
[1738288773772,3.72485492,3271.4,3270.8,3.05733]
[1738288774322,0.03126872,3271.3,3270.8,3.05733]
[1738288775212,0.03126872,3271.3,3270.9,3.05725]
[1738288778522,3.12642143,3271.3,3270.6,0.199]
[1738288778693,3.05711,3271.1,3270.6,0.199]
[1738288778893,3.05711,3271.1,3270.5,3.85221]
[1738288779213,0.03123979,3271.0,3270.6,0.199]
[1738288781076,0.03123979,3271.0,3270.7,3.05744]
[1738288781320,0.7676,3271.2,3270.7,3.05744]
[1738288781526,0.03011636,3270.9,3270.7,3.05744]
[1738288781826,0.03010671,3270.8,3270.7,3.05744]
[1738288781995,0.7676,3271.2,3270.7,3.05744]
[1738288782180,0.03013565,3271.1,3270.7,3.05744]
[1738288783794,0.03013565,3271.1,3270.9,3.05726]
[1738288783995,0.03013565,3271.1,3270.9,0.8227]
[1738288784197,0.03013565,3271.1,3270.5,0.55]
[1738288784198,0.7777,3271.2,3270.7,3.05739]
[1738288784435,0.03004978,3271.1,3270.7,3.05739]
[1738288786723,0.03004978,3271.1,3270.8,3.05735]
[1738288788340,0.03004978,3271.1,3270.9,35.0]
[1738288788751,0.7777,3271.2,3270.9,35.0]
[1738288788900,0.03003632,3271.0,3270.9,35.0]
[1738288789392,0.7777,3271.2,3270.9,35.0]
[1738288789592,0.03004597,3271.1,3270.9,35.0]
[1738288790440,0.03004597,3271.1,3270.9,38.05723]
[1738288793101,0.03004597,3271.1,3271.0,3.05716]
[1738288793300,3.7922,3271.5,3271.1,3.05702]
[1738288793719,0.03010342,3271.4,3271.1,3.05702]
[1738288797778,0.03010342,3271.4,3270.9,38.05723]
[1738288799071,0.03010342,3271.4,3270.9,3.05723]
[1738288799271,0.03010342,3271.4,3271.0,3.05715]
[1738288799432,0.03010342,3271.4,3270.9,3.05723]
[1738288799433,0.03010342,3271.4,3271.1,3.05707]
[1738288800573,0.03010342,3271.4,3270.9,3.05723]
[1738288800764,0.03010342,3271.4,3271.0,3.05716]
[1738288803084,3.03010342,3271.4,3270.8,35.8323]
[1738288803377,3.03010342,3271.4,3270.9,3.05725]
[1738288804339,3.03010342,3271.4,3270.8,35.0]
[1738288804340,3.75621601,3271.4,3270.8,35.0]
[1738288804571,3.75621601,3271.4,3269.8,5.37]
[1738288804572,3.05753,3270.7,3270.4,0.199]
[1738288805098,0.8257,3271.3,3270.9,3.05725]
[1738288805268,0.8257,3271.5,3271.0,3.05715]
[1738288805455,3.03010342,3271.4,3270.8,3.05729]
[1738288805899,3.03010342,3271.4,3270.9,35.0]
[1738288806985,3.03010342,3271.4,3270.9,38.05722]
[1738288811086,3.03010342,3271.4,3270.9,3.05722]
[1738288811452,3.03010342,3271.4,3271.0,35.0]
[1738288814484,6.08690342,3271.4,3271.0,35.0]
[1738288819908,6.08690342,3271.4,3270.8,3.05734]
[1738288820493,6.08690342,3271.4,3270.9,35.0]
[1738288821017,6.0568,3271.4,3270.9,35.0]
[1738288828331,0.993913,3271.4,3270.9,35.0]
[1738288828500,3.8342,3270.7,3270.3,0.199]
[1738288828829,6.05684,3271.4,3270.3,0.199]
[1738288828830,0.02881638,3270.6,3270.3,0.199]
[1738288828998,3.83389,3271.0,3270.4,38.05772]
[1738288829199,0.02884531,3270.9,3270.4,38.05772]
[1738288830987,3.08616531,3270.9,3270.4,35.0]
[1738288834479,0.02884531,3270.9,3270.4,38.05772]
[1738288834750,0.02884531,3270.9,3270.5,0.55]
[1738288834908,0.02884531,3270.9,3270.8,3.60735]
[1738288835103,0.8116,3271.4,3270.9,3.05718]
[1738288835309,0.8116,3271.4,3271.2,35.0]
[1738288838364,3.05715,3271.1,3270.8,0.199]
[1738288838665,3.05717,3271.0,3270.8,0.199]
[1738288839421,3.05717,3271.0,3270.6,35.0]
[1738288840378,3.05715,3271.1,3270.6,35.0]
[1738288841891,0.7826,3271.2,3270.6,38.05746]
[1738288842187,0.7826,3271.2,3270.6,38.87496]
[1738288843987,3.8396,3271.2,3270.6,38.87496]
[1738288844178,0.7829,3270.9,3270.6,35.0]
[1738288844346,3.84016,3270.9,3270.6,35.0]
[1738288844686,0.7829,3270.9,3270.6,35.0]
[1738288846001,3.84474,3271.1,3270.6,35.0]
[1738288846155,0.7876,3271.1,3270.6,35.8019]
[1738288846365,0.7876,3271.1,3270.7,3.05735]
[1738288847018,0.7876,3271.1,3270.8,35.0]
[1738288847298,0.7876,3271.1,3270.8,38.05734]
[1738288849122,0.7681,3271.3,3270.8,38.05734]
[1738288849401,0.00622871,3270.9,3270.8,38.05734]
[1738288852681,0.00622871,3270.9,3270.6,4.05844]
[1738288852918,0.00622871,3270.9,3270.6,3.25654]
[1738288853333,0.00622871,3270.9,3270.6,38.25654]
[1738288853856,0.00622871,3270.9,3270.7,3.05742]
[1738288856858,0.00622871,3270.9,3270.8,35.0]
[1738288860720,0.00622871,3270.9,3270.8,38.05735]
[1738288861005,0.00622871,3270.9,3270.8,39.42975]
[1738288864371,0.8279,3272.0,3271.6,3.05656]
[1738288865074,0.8279,3272.0,3271.7,35.0]
[1738288865501,0.8279,3272.0,3271.6,3.05656]
[1738288865699,0.7565,3272.4,3271.9,3.05628]
[1738288865915,3.7565,3272.4,3271.9,3.05628]
[1738288866127,0.7565,3272.4,3272.1,3.05607]
[1738288866339,0.7565,3272.4,3272.2,3.05602]
[1738288866503,3.0,3272.5,3272.2,3.05602]
[1738288866688,3.0,3272.5,3272.1,3.05607]
[1738288867018,6.13,3272.6,3272.1,3.05607]
[1738288867215,0.78,3272.6,3272.0,0.55]
[1738288867438,0.78,3272.6,3272.1,38.05605]
[1738288868215,3.06715604,3272.6,3272.1,35.0]
[1738288868653,3.06715604,3272.6,3272.1,38.05613]
[1738288868950,2.23782458,3272.6,3272.1,38.05613]
[1738288869250,0.78,3272.6,3272.1,38.05613]
[1738288870962,0.78,3272.6,3271.8,3.0564]
[1738288870963,0.03819725,3272.5,3271.8,3.0564]
[1738288871266,3.05588,3272.4,3272.0,0.199]
[1738288872165,3.88851746,3272.4,3271.8,35.0]
[1738288872321,4.51387458,3272.2,3271.9,0.199]
[1738288872516,0.82410229,3272.1,3271.2,0.7723]
[1738288872762,3.05676,3271.5,3270.9,3.0572]
[1738288872946,3.84277,3271.4,3270.9,0.199]
[1738288873136,3.84277,3271.4,3270.8,0.199]
[1738288873340,3.84277,3271.4,3270.9,35.0]
[1738288873738,0.7859,3271.4,3270.9,38.05724]
[1738288874421,0.7859,3271.4,3270.9,38.25624]
[1738288876056,0.7859,3271.4,3270.9,35.0]
[1738288876366,3.05689,3271.3,3270.9,35.0]
[1738288876949,0.7859,3271.4,3270.9,35.0]
[1738288877211,0.7859,3271.4,3270.9,38.05726]
[1738288878195,0.7859,3271.4,3271.0,3.05715]
[1738288878697,0.7859,3271.4,3271.2,3.05694]
[1738288878902,5.35,3272.0,3270.9,35.0]
[1738288878903,3.0,3271.6,3270.9,35.0]
[1738288879106,0.8331,3271.1,3270.9,35.0]
[1738288879324,0.87131589,3271.1,3270.9,35.0]
[1738288879523,3.05716,3271.0,3270.9,35.0]
[1738288882425,0.8331,3271.1,3270.9,35.0]
[1738288883135,1.527818,3271.1,3270.9,35.0]
[1738288883425,3.05716,3271.0,3270.4,3.25671]
[1738288883788,3.05716,3271.0,3270.5,35.0]
[1738288884037,1.527818,3271.1,3270.5,35.0]
[1738288884209,1.527818,3271.1,3270.5,38.05762]
[1738288884525,4.584928,3271.1,3270.5,35.0]
[1738288885088,4.584928,3271.1,3270.5,38.05762]
[1738288887327,0.8331,3271.1,3270.8,3.05727]
[1738288888024,0.8331,3271.1,3270.9,35.0]
[1738288892591,0.8331,3271.1,3270.7,3.05742]
[1738288893821,0.8331,3271.1,3270.7,3.05119129]
[1738288902756,0.8331,3271.1,3270.8,3.05733]
[1738288904587,0.8331,3271.1,3270.7,3.05119129]
[1738288907519,0.8331,3271.1,3270.8,35.0]
[1738288908458,0.7681,3270.8,3270.1,0.199]
[1738288908617,0.80632203,3270.8,3270.3,3.05781]
[1738288908980,6.1756,3271.0,3270.7,3.05743]
[1738288909883,6.1756,3271.0,3270.8,35.0]
[1738288910046,0.8256,3271.0,3270.8,35.0]
[1738288916147,5.35,3271.5,3271.0,3.05707]
[1738288916787,5.35,3271.5,3271.1,35.0]
[1738288917463,0.7944,3271.9,3271.4,3.05675]
[1738288917654,0.7944,3271.9,3271.3,3.05688]
[1738288918052,0.7944,3271.9,3271.4,35.0]
[1738288919186,0.7944,3271.9,3271.5,3.05663]
[1738288919888,0.7944,3271.9,3271.6,35.0]
[1738288920090,0.7944,3271.9,3271.5,3.05663]
[1738288921881,3.7919,3272.1,3271.4,0.7801]
[1738288922088,0.7919,3272.4,3271.4,0.7801]
[1738288922257,3.84776,3272.4,3271.7,3.0565]
[1738288922456,3.88596268,3272.4,3271.8,35.0]
[1738288922802,3.84776,3272.4,3271.8,35.0]
[1738288924810,0.7548,3272.0,3271.4,3.05678]
[1738288924955,0.79300525,3272.0,3271.5,0.199]
[1738288925364,0.7548,3272.0,3271.5,0.199]
[1738288926001,0.7548,3272.0,3271.6,3.05659]
[1738288926360,0.7505,3272.2,3271.8,3.0564]
[1738288927899,0.7505,3272.2,3271.6,0.7846]
[1738288927900,3.0944027,3272.1,3271.6,0.199]
[1738288929401,3.05623,3272.0,3271.6,0.199]
[1738288929701,1.431138,3272.2,3271.5,0.199]
[1738288929702,3.05644,3271.8,3271.5,0.199]
[1738288930008,0.38551453,3271.7,3271.5,0.199]
[1738288930205,0.79870811,3271.6,3271.2,35.0]
[1738288930503,0.03820985,3271.5,3271.2,35.0]
[1738288931259,3.09493985,3271.5,3271.2,35.0]
[1738288932870,3.05688,3271.3,3270.8,0.199]
[1738288933073,3.79103546,3271.3,3270.8,0.199]
[1738288933302,3.75282198,3271.3,3270.8,0.199]
[1738288933601,3.75282198,3271.3,3270.9,35.0]
[1738288935188,0.7774,3272.4,3271.1,0.565]
[1738288935376,0.7774,3272.4,3271.9,3.05632]
[1738288935563,0.7774,3272.4,3272.3,35.0]
[1738288935768,0.7774,3272.7,3272.3,35.0]
[1738288936366,0.7774,3272.7,3272.1,3.05607]
[1738288936562,3.83299,3272.7,3272.1,3.05607]
[1738288937107,3.83299,3272.7,3272.2,35.0]
[1738288938310,0.7774,3272.7,3272.2,38.05603]
[1738288940868,3.83298,3272.7,3272.2,35.0]
[1738288941371,3.83298,3272.7,3272.0,3.25517]
[1738288941915,3.83298,3272.7,3272.1,35.0]
[1738288942682,3.83298,3272.7,3272.0,3.25517]
[1738288943302,3.83298,3272.7,3272.0,38.25517]
[1738288943500,0.7774,3272.7,3272.0,35.199]
[1738288943703,0.7618,3273.0,3272.4,3.05584]
[1738288944009,3.8171,3273.0,3272.3,3.05589]
[1738288945889,3.05549,3272.8,3272.1,3.86224]
[1738288947325,3.05549,3272.8,3272.2,3.05602]
[1738288949734,3.0,3273.1,3272.3,35.0]
[1738288949890,3.0,3273.1,3272.4,0.8143]
[1738288950200,6.05523,3273.1,3272.4,3.87008]
[1738288950728,3.8541,3273.0,3272.4,3.87008]
[1738288951523,3.8541,3273.0,3272.5,0.199]
[1738288952130,3.8541,3273.0,3272.4,3.87008]
[1738288952331,3.05541,3272.9,3272.5,0.199]
[1738288952537,3.8541,3273.0,3272.5,0.199]
[1738288953907,0.8138,3273.4,3272.9,3.05539]
[1738288954937,0.0290517,3273.3,3272.9,3.05539]
[1738288955833,0.0290517,3273.3,3273.0,3.05528]
[1738288956923,0.0290517,3273.3,3273.1,3.05518]
[1738288957435,0.0290517,3273.3,3273.2,35.0]
[1738288959929,0.0290517,3273.3,3273.1,3.05518]
[1738288963259,0.0290517,3273.3,3273.2,35.0]
[1738288964144,0.005,3273.4,3273.2,35.0]
[1738288964651,0.040013,3273.3,3273.2,35.0]
[1738288967249,0.02869364,3273.3,3273.2,35.0]
[1738288968052,0.02869364,3273.3,3272.6,3.05564]
[1738288968221,3.05526,3273.1,3272.7,0.199]
[1738288968423,3.0553,3273.0,3272.6,0.199]
[1738288969651,3.44426536,3273.1,3272.6,0.199]
[1738288970215,3.05526,3273.1,3272.6,0.199]
[1738288973826,3.05526,3273.1,3272.5,3.05569]
[1738288974056,3.8061,3273.2,3272.6,3.25466]
[1738288974623,0.8061,3273.2,3272.6,3.25466]
[1738288974822,0.8061,3273.2,3272.8,3.05548]
[1738288975076,3.005,3273.4,3272.9,3.05538]
[1738288975262,3.005,3273.4,3272.8,3.86458]
[1738288975436,3.005,3273.4,3273.0,3.05528]
[1738288975778,0.005,3273.4,3273.0,3.05528]
[1738288976840,0.005,3273.4,3273.1,3.05518]
[1738288979479,0.005,3273.4,3273.2,3.05504]
[1738288981669,0.04447021,3273.3,3273.2,3.05504]
[1738288983584,0.04447021,3273.3,3273.1,3.05518]
[1738288985080,0.04447021,3273.3,3273.2,0.199]
[1738288986156,0.04447021,3273.3,3272.9,3.05538]
[1738288986157,0.7822,3273.2,3272.8,0.8091]
[1738288986366,0.7822,3273.2,3272.9,0.199]
[1738288986595,0.82665522,3273.2,3272.9,0.199]
[1738288986983,0.7822,3273.2,3272.9,0.199]
[1738288990717,0.7822,3273.2,3272.8,3.05547]
[1738288990993,0.7822,3273.2,3272.8,3.25447]
[1738288994712,0.82568909,3273.1,3272.2,0.7904]
[1738288994870,0.7875,3272.7,3271.9,0.7904]
[1738288995074,3.84336,3272.4,3271.8,0.199]
[1738288995474,3.84336,3272.4,3271.7,3.25545]
[1738288996308,0.7875,3272.2,3271.5,2.42]
[1738288996471,0.8088,3271.7,3271.5,2.42]
[1738288997278,0.8088,3271.7,3271.2,3.05698]
[1738288997587,0.8088,3271.7,3271.1,3.05701]
[1738288997588,3.86537,3271.7,3271.1,3.05701]
[1738289000608,0.8088,3271.7,3271.2,3.05695]
[1738289001128,0.7609,3272.1,3271.2,1.367]
[1738289001330,0.7609,3272.1,3271.7,3.05643]
[1738289001737,3.0555,3272.8,3272.2,3.05604]
[1738289001899,3.05528,3273.1,3272.3,3.05594]
[1738289002100,3.05532,3273.0,3272.3,3.05594]
[1738289002392,3.0,3272.9,3272.4,3.05585]
[1738289002932,3.05511,3273.2,3272.5,3.05574]
[1738289003253,3.4177285,3273.1,3272.5,3.05574]
[1738289003797,1.122175,3273.3,3272.5,3.05574]
[1738289003798,1.122175,3273.3,3272.7,3.05549]
[1738289004401,4.122175,3273.3,3272.7,3.05549]
[1738289004583,1.122175,3273.3,3272.7,3.05549]
[1738289005475,3.8161,3273.3,3272.7,3.05549]
[1738289005829,0.005,3273.4,3273.0,3.05528]
[1738289006404,0.005,3273.4,3272.7,3.05558]
[1738289006405,0.005,3273.4,3272.8,3.05544]
[1738289006610,3.005,3273.4,3272.8,3.05544]
[1738289006917,0.03818837,3273.3,3272.6,3.85896]
[1738289007125,3.05511,3273.2,3272.6,3.85896]
[1738289007500,3.05511,3273.2,3272.7,0.199]
[1738289007691,6.05998,3273.4,3272.7,3.25456]
[1738289008625,6.09816987,3273.4,3272.7,0.199]
[1738289008789,7.08860586,3273.4,3272.7,0.199]
[1738289008993,7.05041599,3273.4,3272.7,0.199]
[1738289009191,7.05041599,3273.4,3272.7,3.25457]
[1738289010332,3.005,3273.4,3272.8,3.05547]
[1738289010531,0.005,3273.4,3273.2,3.8354]
[1738289010754,0.005,3273.4,3273.3,3.05502]
[1738289012313,0.005,3273.4,3273.3,3.60502]
[1738289012825,0.005,3273.4,3273.3,0.199]
[1738289013333,0.005,3273.4,3273.1,3.05517]
[1738289013487,0.005,3273.4,3273.3,0.199]
[1738289014045,0.005,3273.4,3273.3,3.25402]
[1738289014641,0.005,3273.4,3273.3,0.199]
[1738289014841,0.005,3273.4,3273.3,3.25402]
[1738289015257,0.005,3273.4,3273.3,3.80402]
[1738289015398,0.005,3273.4,3273.3,4.61442]
[1738289016791,0.005,3273.4,3273.3,4.41542]
[1738289016997,0.005,3273.4,3273.3,4.61442]
[1738289019956,0.005,3273.4,3273.3,4.41542]
[1738289020151,0.005,3273.4,3273.3,4.61442]
[1738289022068,0.005,3273.4,3273.3,4.41542]
[1738289022215,0.005,3273.4,3273.3,4.61442]
[1738289022651,0.005,3273.4,3273.3,4.41542]
[1738289023136,0.005,3273.4,3273.3,4.06442]
[1738289023850,0.005,3273.4,3273.3,1.0094]
[1738289025347,0.005,3273.4,3273.3,4.06442]
[1738289026142,0.005,3273.4,3273.3,4.61442]
[1738289027619,0.005,3273.4,3273.3,39.61442]
[1738289029762,0.005,3273.4,3273.3,38.80402]
[1738289029969,0.005,3273.4,3273.3,38.25402]
[1738289030646,0.005,3273.4,3273.3,38.70499544]
[1738289031225,0.005,3273.4,3273.3,35.45097544]
[1738289031431,0.005,3273.4,3273.3,35.64997544]
[1738289032727,0.005,3273.4,3273.3,38.70499544]
[1738289033061,0.005,3273.4,3273.3,39.25499544]
[1738289034968,0.005,3273.4,3273.3,40.07919544]
[1738289035338,0.005,3273.4,3273.3,40.09419544]
[1738289035643,1e-05,3273.4,3273.3,45.39999544]
[1738289035848,0.005,3273.9,3273.8,5.86815]
[1738289036263,0.005,3273.9,3273.8,6.43315]
[1738289036461,0.005,3273.9,3273.8,41.63215]
[1738289036637,0.005,3273.9,3273.8,39.63215]
[1738289036971,0.005,3273.9,3273.8,40.08312544]
[1738289038969,0.005,3273.9,3273.8,39.51812544]
[1738289039170,0.005,3273.9,3273.8,38.70452544]
[1738289039360,0.005,3273.9,3273.8,40.07432544]
[1738289043070,0.005,3273.9,3273.8,39.86782544]
[1738289043372,0.005,3273.9,3273.8,40.06682544]
[1738289043971,0.005,3273.9,3273.8,39.86782544]
[1738289044180,0.005,3273.9,3273.8,40.06682544]
[1738289044746,0.005,3273.9,3273.8,35.64997544]
[1738289044952,0.005,3273.9,3273.8,35.45097544]
[1738289045146,0.8307,3273.9,3273.8,35.64997544]
[1738289045462,0.8307,3273.9,3273.8,35.45097544]
[1738289045654,0.8307,3273.9,3273.8,35.0]
[1738289046184,0.005,3273.9,3273.8,35.55]
[1738289046480,0.005,3273.9,3273.8,38.80355]